bitfinex/quotes_SOLUSD_20250624
["timestamp","ask_amount","ask_price","bid_price","bid_amount"]
[1750730492414,5.68582774,143.81,143.79,6.16]
[1750730493726,10.88243822,143.8,143.79,6.16]
[1750730494558,5.19661048,143.8,143.79,6.16]
[1750730495117,5.1948931,143.81,143.79,13.11458654]
[1750730495427,5.68582774,143.84,143.79,18.80041428]
[1750730495629,5.19527291,143.83,143.79,18.80041428]
[1750730495852,5.19527291,143.82,143.79,18.80041428]
[1750730496056,31.68582774,143.84,143.79,18.80041428]
[1750730496347,10.88128392,143.83,143.79,18.80041428]
[1750730496555,5.68582774,143.83,143.79,18.80041428]
[1750730496751,5.68582774,143.83,143.79,13.11458654]
[1750730497055,5.19531325,143.82,143.79,13.11458654]
[1750730497238,5.68582774,143.83,143.79,13.11458654]
[1750730497435,5.19503098,143.82,143.79,13.11458654]
[1750730497635,5.68582774,143.83,143.79,13.11458654]
[1750730497850,5.19429907,143.82,143.79,13.11458654]
[1750730498049,5.68582774,143.83,143.79,13.11458654]
[1750730498251,5.19439113,143.82,143.79,13.11458654]
[1750730498439,5.68582774,143.83,143.79,13.11458654]
[1750730498755,5.19437328,143.82,143.79,13.11458654]
[1750730498939,5.68582774,143.83,143.79,13.11458654]
[1750730499141,5.19460066,143.82,143.79,13.11458654]
[1750730499440,5.68582774,143.83,143.79,13.11458654]
[1750730499751,5.19455381,143.82,143.79,18.80041428]
[1750730499953,31.68582774,143.84,143.79,18.80041428]
[1750730500155,5.19455822,143.83,143.79,18.80041428]
[1750730500354,5.19455822,143.82,143.8,24.3354766]
[1750730500551,6.49386342,143.86,143.8,24.3354766]
[1750730500552,5.1958121,143.85,143.81,5.68582774]
[1750730500755,12.17969116,143.89,143.84,5.68582774]
[1750730500941,5.19696867,143.88,143.85,5.68582774]
[1750730501132,5.19696867,143.87,143.86,5.68582774]
[1750730501339,20.46069126,143.93,143.86,7.29702774]
[1750730501340,5.19696867,143.9,143.86,7.29702774]
[1750730501554,5.19696867,143.89,143.87,5.68582774]
[1750730501754,5.19696867,143.9,143.87,12.63647049]
[1750730501959,5.19696867,143.89,143.86,6.95111435]
[1750730502151,5.68582774,143.9,143.86,12.63694209]
[1750730502347,5.19445005,143.89,143.86,5.68582774]
[1750730502550,10.87848066,143.89,143.85,6.16]
[1750730502750,10.87848066,143.88,143.85,6.16]
[1750730502957,5.68582774,143.88,143.85,6.16]
[1750730503960,10.87770016,143.88,143.85,6.16]
[1750730504172,5.68582774,143.88,143.85,6.16]
[1750730504472,10.87615406,143.89,143.85,6.16]
[1750730504959,5.19032632,143.88,143.85,6.16]
[1750730506646,5.68582774,143.87,143.85,6.16]
[1750730507654,10.87615406,143.87,143.85,6.16]
[1750730507853,5.68582774,143.87,143.85,6.16]
[1750730508157,10.87615406,143.87,143.85,6.16]
[1750730508351,5.68582774,143.87,143.85,6.16]
[1750730508557,10.87615406,143.87,143.85,6.16]
[1750730508735,5.68582774,143.87,143.85,6.16]
[1750730508939,10.87615406,143.87,143.85,6.16]
[1750730509152,5.68582774,143.87,143.85,6.16]
[1750730509353,10.87615406,143.87,143.85,6.16]
[1750730509558,5.68582774,143.87,143.85,6.16]
[1750730509758,26.0,143.89,143.8,6.16]
[1750730509759,0.14216157,143.85,143.8,6.16]
[1750730509953,5.68582774,143.83,143.8,6.16]
[1750730512772,5.68582774,143.82,143.8,6.16]
[1750730513355,5.68582774,143.83,143.8,6.16]
[1750730517566,5.19032632,143.84,143.81,5.68582774]
[1750730517771,31.19032632,143.86,143.82,5.68582774]
[1750730518653,26.0,143.86,143.82,5.68582774]
[1750730518956,26.0,143.86,143.82,12.63875796]
[1750730521061,10.87615406,143.88,143.84,5.68582774]
[1750730521565,10.87615406,143.88,143.83,5.68582774]
[1750730523056,10.87615406,143.88,143.83,12.63817483]
[1750730523269,5.19032632,143.87,143.83,12.63817483]
[1750730523471,5.19032632,143.88,143.83,12.63817483]
[1750730523678,5.68582774,143.87,143.83,12.63817483]
[1750730524493,5.19032632,143.88,143.86,5.68582774]
[1750730524663,10.23787229,143.93,143.89,18.64964886]
[1750730524865,10.23787229,143.93,143.92,5.68582774]
[1750730525375,31.68582774,143.97,143.92,5.68582774]
[1750730525569,31.68582774,143.97,143.9,6.2392]
[1750730525763,5.68582774,143.97,143.92,5.68582774]
[1750730526081,31.68582774,143.97,143.92,5.68582774]
[1750730526586,31.68582774,143.97,143.93,12.63364959]
[1750730527277,31.68582774,143.97,143.93,5.68582774]
[1750730529392,31.68582774,143.97,143.9,6.2392]
[1750730529569,5.68582774,143.95,143.91,5.68582774]
[1750730529761,26.0,143.97,143.93,5.68582774]
[1750730529966,5.68582774,143.98,143.94,5.68582774]
[1750730530376,5.68582774,143.98,143.93,6.14]
[1750730530377,26.0,143.98,143.95,5.68582774]
[1750730531283,26.0,143.98,143.94,12.63310366]
[1750730531495,5.68582774,143.97,143.93,11.82582774]
[1750730532281,5.68582774,143.97,143.93,6.14]
[1750730534986,26.0,143.98,143.93,6.14]
[1750730535186,5.68582774,143.96,143.93,6.14]
[1750730535496,26.0,143.98,143.93,6.14]
[1750730535677,5.68582774,143.96,143.93,6.14]
[1750730538878,5.68582774,143.95,143.9,6.2392]
[1750730539077,5.68582774,143.94,143.91,6.14]
[1750730539288,5.68582774,143.95,143.91,6.14]
[1750730540097,5.68582774,143.94,143.91,6.14]
[1750730540687,5.68582774,143.94,143.9,11.92502774]
[1750730540881,5.68582774,143.94,143.9,18.06502774]
[1750730544686,18.79181043,143.99,143.9,18.06502774]
[1750730544891,18.79181043,143.99,143.9,12.3792]
[1750730544892,5.68582774,143.94,143.9,12.3792]
[1750730545088,5.68582774,143.92,143.9,6.14]
[1750730545293,5.68582774,143.91,143.9,6.14]
[1750730545797,5.68582774,143.91,143.87,6.4404]
[1750730545986,5.68582774,143.88,143.85,6.14]
[1750730546181,5.68582774,143.87,143.85,6.14]
[1750730546387,5.68582774,143.88,143.85,6.14]
[1750730546587,26.0,143.9,143.85,6.14]
[1750730546588,5.68582774,143.87,143.85,6.14]
[1750730547703,5.68582774,143.86,143.85,6.14]
[1750730549378,5.68582774,143.86,143.8,98.67807195]
[1750730549700,5.68582774,143.84,143.8,98.67807195]
[1750730549900,0.14216157,143.89,143.82,5.68582774]
[1750730550097,5.68582774,143.87,143.82,5.68582774]
[1750730550295,5.68582774,143.86,143.82,5.68582774]
[1750730550601,5.68582774,143.87,143.82,5.68582774]
[1750730550807,5.68582774,143.86,143.82,12.6389636]
[1750730551388,5.68582774,143.84,143.81,96.35357338]
[1750730554804,5.68582774,143.84,143.8,92.99227789]
[1750730555309,5.68582774,143.84,143.8,98.67810563]
[1750730555607,0.14216157,143.87,143.8,98.67810563]
[1750730555784,5.68582774,143.85,143.8,98.67810563]
[1750730555984,5.68582774,143.84,143.8,98.67810563]
[1750730556189,5.68582774,143.85,143.8,98.67810563]
[1750730559205,5.15721765,143.9,143.84,5.68582774]
[1750730559410,5.68582774,143.91,143.86,5.68582774]
[1750730559633,26.0,143.9,143.86,11.82582774]
[1750730559798,5.68582774,143.89,143.86,6.14]
[1750730561500,5.68582774,143.89,143.86,13.09105326]
[1750730561707,5.68582774,143.9,143.86,13.09105326]
[1750730562710,26.0,143.91,143.86,18.776881]
[1750730563002,31.68582774,143.91,143.86,18.776881]
[1750730563613,31.68582774,143.91,143.86,13.09105326]
[1750730563808,31.68582774,143.91,143.86,18.776881]
[1750730564114,26.0,143.92,143.86,18.776881]
[1750730564411,5.68582774,143.91,143.86,18.776881]
[1750730566315,5.68582774,143.91,143.88,6.9502363]
[1750730569415,26.0,143.92,143.88,6.9502363]
[1750730569712,5.68582774,143.91,143.88,6.9502363]
[1750730570301,26.0,143.92,143.88,6.9502363]
[1750730570503,5.68582774,143.91,143.88,6.9502363]
[1750730570702,26.0,143.92,143.88,6.9502363]
[1750730570914,5.68582774,143.91,143.88,6.9502363]
[1750730571115,26.0,143.92,143.88,6.9502363]
[1750730571313,5.68582774,143.91,143.88,6.9502363]
[1750730572192,5.68582774,143.92,143.88,6.9502363]
[1750730573600,5.68582774,143.92,143.88,5.68582774]
[1750730574312,26.0,143.94,143.88,5.68582774]
[1750730574513,5.68582774,143.92,143.88,5.68582774]
[1750730574909,5.68582774,143.93,143.88,5.68582774]
[1750730575101,5.68582774,143.95,143.9,5.68582774]
[1750730575411,31.15931733,143.96,143.91,5.68582774]
[1750730575613,31.68582774,143.96,143.92,6.94830461]
[1750730576117,5.68582774,143.95,143.92,6.94830461]
[1750730576620,5.68582774,143.94,143.87,17.37679849]
[1750730576918,5.68582774,143.93,143.89,5.68582774]
[1750730577119,5.68582774,143.93,143.89,11.88582774]
[1750730577619,5.68582774,143.93,143.9,6.94927032]
[1750730577820,5.68582774,143.92,143.89,6.2]
[1750730578209,5.68582774,143.93,143.89,13.14957231]
[1750730578394,5.68582774,143.93,143.89,18.83540005]
[1750730579202,5.68582774,143.94,143.89,18.83540005]
[1750730579401,5.68582774,143.93,143.89,18.83540005]
[1750730580626,5.68582774,143.93,143.89,13.14957231]
[1750730580833,5.68582774,143.92,143.89,6.2]
[1750730583014,5.68582774,143.9,143.86,6.2]
[1750730583415,5.68582774,143.89,143.86,6.2]
[1750730584128,5.68582774,143.88,143.86,6.2]
[1750730584426,5.68582774,143.87,143.83,13.15261434]
[1750730584619,5.68582774,143.86,143.83,13.15261434]
[1750730585133,5.68582774,143.86,143.83,6.2]
[1750730585516,5.68582774,143.85,143.83,6.2]
[1750730587314,26.0,143.87,143.83,6.2]
[1750730587517,31.68582774,143.87,143.83,13.15259329]
[1750730587723,5.68582774,143.87,143.83,18.83842103]
[1750730588030,5.68582774,143.88,143.84,5.68582774]
[1750730588215,5.68582774,143.9,143.86,5.68582774]
[1750730588814,5.68582774,143.9,143.87,6.95071939]
[1750730589827,5.68582774,143.9,143.86,6.95103446]
[1750730590028,5.68582774,143.89,143.86,6.95103446]
[1750730590627,5.68582774,143.89,143.85,12.63736458]
[1750730591009,5.68582774,143.87,143.83,6.2]
[1750730591208,5.68582774,143.86,143.83,6.2]
[1750730591431,5.68582774,143.84,143.83,6.2]
[1750730594834,5.68582774,143.85,143.83,6.2]
[1750730595715,0.14216157,143.83,143.8,72.03001783]
[1750730595920,5.82798931,143.81,143.8,72.03001783]
[1750730596119,5.82798931,143.81,143.76,6.18]
[1750730596340,5.68582774,143.79,143.76,6.18]
[1750730598227,6.121,143.85,143.78,5.68582774]
[1750730598228,5.68582774,143.85,143.78,5.68582774]
[1750730598427,5.68582774,143.85,143.8,5.68582774]
[1750730598632,5.68582774,143.85,143.76,36.21159708]
[1750730598633,26.0,143.85,143.76,13.13567474]
[1750730598827,5.68582774,143.83,143.78,5.68582774]
[1750730599026,5.68582774,143.82,143.77,5.68582774]
[1750730600028,5.68582774,143.82,143.77,12.64092564]
[1750730600227,26.0,143.85,143.77,12.64092564]
[1750730600228,5.68582774,143.81,143.77,18.82092564]
[1750730601353,5.68582774,143.81,143.77,13.1350979]
[1750730601743,5.68582774,143.8,143.77,6.18]
[1750730601954,5.68582774,143.79,143.77,6.18]
[1750730603247,5.68582774,143.78,143.72,6.18]
[1750730603446,5.68582774,143.76,143.72,6.18]
[1750730603667,5.68582774,143.76,143.72,13.13784902]
[1750730603956,5.68582774,143.76,143.72,18.82367676]
[1750730604327,8.56157097,143.76,143.72,21.69941999]
[1750730605130,8.56157097,143.76,143.72,13.13784902]
[1750730610463,8.56157097,143.76,143.72,6.18]
[1750730610843,8.56157097,143.76,143.72,13.13791104]
[1750730613273,8.56157097,143.76,143.72,6.18]
[1750730613474,8.56157097,143.75,143.72,6.18]
[1750730614045,8.56157097,143.74,143.72,6.18]
[1750730614272,8.56157097,143.73,143.72,6.18]
[1750730614777,8.56157097,143.73,143.67,113.35510371]
[1750730614951,8.56157097,143.72,143.67,113.35510371]
[1750730615955,8.56157097,143.72,143.68,8.56157097]
[1750730616271,26.0,143.74,143.67,104.79353274]
[1750730616272,34.56157097,143.75,143.7,8.56157097]
[1750730617075,8.56157097,143.75,143.7,8.56157097]
[1750730617288,34.56157097,143.75,143.71,6.958458]
[1750730618962,34.56157097,143.75,143.71,15.52002897]
[1750730619165,8.56157097,143.76,143.71,15.52002897]
[1750730619565,8.56157097,143.77,143.72,8.56157097]
[1750730619750,26.0,143.78,143.74,8.56157097]
[1750730619751,8.56157097,143.78,143.74,8.56157097]
[1750730620150,34.56157097,143.78,143.74,8.56157097]
[1750730620855,26.0,143.78,143.74,8.56157097]
[1750730621256,26.0,143.78,143.75,15.51770676]
[1750730622274,26.0,143.78,143.75,6.95613579]
[1750730623279,1.5129,143.8,143.75,6.95613579]
[1750730623280,8.56157097,143.8,143.75,15.51770676]
[1750730623470,8.56157097,143.8,143.76,8.56157097]
[1750730623871,11.86723104,143.81,143.77,8.56157097]
[1750730624577,11.86723104,143.81,143.75,6.95613579]
[1750730624760,11.86723104,143.81,143.77,8.56157097]
[1750730624961,20.42880201,143.81,143.76,8.56157097]
[1750730625185,8.56157097,143.8,143.75,15.51770676]
[1750730626083,8.56157097,143.8,143.76,8.56157097]
[1750730626278,8.56157097,143.8,143.76,5.70420832]
[1750730626279,5.70420832,143.8,143.76,5.70420832]
[1750730626463,17.57143936,143.81,143.76,5.70420832]
[1750730627207,17.57143936,143.81,143.76,12.66003861]
[1750730627488,5.70420832,143.8,143.76,12.66003861]
[1750730627786,17.57143936,143.81,143.76,12.66003861]
[1750730627958,5.70420832,143.78,143.73,101.28420832]
[1750730628160,5.70420832,143.77,143.73,18.84163377]
[1750730628880,26.0,143.8,143.73,13.13742545]
[1750730628881,5.70420832,143.76,143.73,13.13742545]
[1750730629259,5.70420832,143.77,143.73,13.13742545]
[1750730631080,5.70420832,143.77,143.73,6.18]
[1750730632085,5.70420832,143.75,143.73,6.18]
[1750730632389,26.0,143.78,143.67,104.31777074]
[1750730632390,26.14216157,143.74,143.67,104.31777074]
[1750730632582,5.70420832,143.73,143.68,5.70420832]
[1750730633174,5.70420832,143.72,143.68,5.70420832]
[1750730633370,5.70420832,143.72,143.69,6.95942654]
[1750730633687,26.14216157,143.74,143.69,12.66363486]
[1750730633688,31.70420832,143.74,143.69,12.66363486]
[1750730633871,5.70420832,143.75,143.7,5.70420832]
[1750730634268,31.70420832,143.76,143.71,5.70420832]
[1750730635305,31.70420832,143.76,143.71,12.66234863]
[1750730635659,5.70420832,143.75,143.71,12.66234863]
[1750730636592,26.0,143.77,143.71,12.66234863]
[1750730636764,5.70420832,143.75,143.71,12.66234863]
[1750730646087,5.18203533,143.77,143.73,5.70420832]
[1750730646386,5.70420832,143.75,143.72,6.2]
[1750730646979,5.18203533,143.76,143.72,11.90420832]
[1750730647174,5.70420832,143.76,143.72,11.90420832]
[1750730647374,5.70420832,143.75,143.72,13.15781728]
[1750730647781,5.70420832,143.76,143.72,13.15781728]
[1750730648189,10.88624365,143.76,143.72,13.15781728]
[1750730648393,5.70420832,143.76,143.72,13.15781728]
[1750730648563,10.88624365,143.76,143.72,13.15781728]
[1750730648767,5.70420832,143.75,143.72,13.15781728]
[1750730649173,10.88624365,143.75,143.72,13.15781728]
[1750730649374,5.70420832,143.75,143.72,13.15781728]
[1750730649993,5.70420832,143.76,143.72,13.15781728]
[1750730650180,10.88624365,143.76,143.72,13.15781728]
[1750730650381,5.70420832,143.76,143.72,13.15781728]
[1750730650689,10.88624365,143.76,143.72,13.15781728]
[1750730650885,5.70420832,143.76,143.72,13.15781728]
[1750730651087,10.88624365,143.76,143.72,13.15781728]
[1750730651286,5.70420832,143.76,143.72,13.15781728]
[1750730651491,10.88624365,143.76,143.72,13.15781728]
[1750730651693,5.70420832,143.76,143.72,13.15781728]
[1750730651991,10.88624365,143.76,143.72,13.15781728]
[1750730652198,5.70420832,143.76,143.72,13.15781728]
[1750730652491,10.88624365,143.76,143.72,13.15781728]
[1750730652701,5.70420832,143.75,143.72,13.15781728]
[1750730653807,5.18203533,143.75,143.72,18.8620256]
[1750730653986,5.18203533,143.76,143.72,18.8620256]
[1750730654507,10.88624365,143.76,143.72,13.15781728]
[1750730654803,5.70420832,143.75,143.72,6.2]
[1750730654979,5.70420832,143.73,143.72,6.2]
[1750730655599,5.70420832,143.73,143.66,7.7655]
[1750730655800,5.70420832,143.71,143.67,13.1202141]
[1750730656597,5.70420832,143.71,143.67,6.16]
[1750730657582,5.70420832,143.7,143.67,6.16]
[1750730657784,5.70420832,143.68,143.67,6.16]
[1750730658790,5.70420832,143.68,143.62,52.8655]
[1750730658992,5.70420832,143.66,143.62,52.8655]
[1750730659502,5.70420832,143.66,143.62,59.82822649]
[1750730660002,5.70420832,143.67,143.63,5.70420832]
[1750730660302,5.70420832,143.68,143.63,5.70420832]
[1750730660901,5.70420832,143.68,143.63,24.35385718]
[1750730661107,26.0,143.71,143.65,5.70420832]
[1750730661108,31.18203533,143.71,143.65,5.70420832]
[1750730661404,5.70420832,143.7,143.65,5.70420832]
[1750730661703,26.0,143.71,143.64,6.96184906]
[1750730661704,5.70420832,143.69,143.64,6.96184906]
[1750730661891,5.70420832,143.69,143.65,5.70420832]
[1750730662882,31.70420832,143.7,143.65,5.70420832]
[1750730663808,31.70420832,143.7,143.66,6.96087985]
[1750730664984,5.70420832,143.69,143.66,6.96087985]
[1750730665486,5.70420832,143.69,143.65,6.96120859]
[1750730666903,5.70420832,143.68,143.65,6.96120859]
[1750730667108,5.70420832,143.67,143.64,6.961719]
[1750730667283,5.70420832,143.66,143.62,13.9255]
[1750730667485,5.70420832,143.66,143.62,26.59238342]
[1750730668603,5.70420832,143.67,143.62,26.59238342]
[1750730669183,5.70420832,143.67,143.63,5.70420832]
[1750730669610,5.70420832,143.66,143.62,20.8881751]
[1750730669795,5.70420832,143.66,143.62,26.59238342]
[1750730670822,5.70420832,143.66,143.62,20.8881751]
[1750730671309,5.70420832,143.66,143.62,6.16]
[1750730671496,5.70420832,143.65,143.62,13.12276798]
[1750730671697,5.70420832,143.66,143.62,13.12276798]
[1750730672508,6.77373533,143.7,143.62,108.2269763]
[1750730672709,5.70420832,143.67,143.63,5.70420832]
[1750730672912,5.70420832,143.67,143.63,95.10420832]
[1750730673209,5.70420832,143.65,143.61,6.96315029]
[1750730673413,5.70420832,143.65,143.61,12.66735861]
[1750730673908,5.70420832,143.65,143.61,6.96315029]
[1750730676201,5.70420832,143.64,143.61,6.96315029]
[1750730677301,26.0,143.66,143.6,13.12371714]
[1750730677497,5.70420832,143.63,143.6,13.12371714]
[1750730678693,5.70420832,143.62,143.6,13.12371714]
[1750730678889,37.01381288,143.68,143.6,13.12371714]
[1750730679102,5.70420832,143.63,143.6,13.12371714]
[1750730689223,5.70420832,143.64,143.6,13.12371714]
[1750730689415,46.05834956,143.68,143.6,13.12371714]
[1750730689616,5.70420832,143.63,143.6,6.16]
[1750730689811,5.70420832,143.61,143.6,6.16]
[1750730694524,5.70420832,143.61,143.57,85.30340094]
[1750730694826,5.70420832,143.58,143.57,85.30340094]
[1750730695122,5.70420832,143.58,143.54,6.16]
[1750730695310,5.70420832,143.56,143.54,6.16]
[1750730695704,5.70420832,143.55,143.54,6.16]
[1750730698322,5.70420832,143.56,143.54,6.16]
[1750730698835,5.70420832,143.56,143.54,13.12658]
[1750730700632,5.70420832,143.56,143.54,6.16]
[1750730701138,5.70420832,143.55,143.54,6.16]
[1750730702108,5.84636989,143.55,143.48,52.8066]
[1750730702329,5.70420832,143.52,143.48,52.8066]
[1750730702530,26.14216157,143.55,143.48,58.26958303]
[1750730702531,5.70420832,143.51,143.48,58.26958303]
[1750730703610,5.70420832,143.52,143.48,63.97379135]
[1750730704142,5.70420832,143.52,143.48,51.3]
[1750730704338,5.70420832,143.51,143.48,51.3]
[1750730704640,18.79181043,143.55,143.48,6.16]
[1750730704641,5.70420832,143.5,143.48,6.16]
[1750730704827,5.70420832,143.5,143.46,6.97041246]
[1750730704828,26.0,143.49,143.44,93.78144559]
[1750730705012,5.70420832,143.48,143.44,105.64565391]
[1750730705613,5.70420832,143.5,143.45,5.70420832]
[1750730705923,5.70420832,143.5,143.45,12.67479759]
[1750730707546,5.70420832,143.49,143.45,12.67479759]
[1750730708546,5.70420832,143.5,143.46,5.70420832]
[1750730708750,0.14216157,143.52,143.48,5.70420832]
[1750730708751,5.70420832,143.52,143.48,5.70420832]
[1750730709456,5.70420832,143.52,143.47,5.70420832]
[1750730709943,5.70420832,143.52,143.48,6.96961248]
[1750730710145,5.70420832,143.51,143.48,6.96961248]
[1750730711735,5.70420832,143.52,143.48,6.96961248]
[1750730712342,5.70420832,143.51,143.48,6.96961248]
[1750730713045,26.0,143.52,143.48,6.96961248]
[1750730713246,5.70420832,143.51,143.48,6.96961248]
[1750730714342,5.70420832,143.51,143.47,6.97009827]
[1750730715440,5.70420832,143.5,143.46,96.37042391]
[1750730715945,5.70420832,143.49,143.46,96.37042391]
[1750730716118,5.70420832,143.49,143.46,6.97042391]
[1750730716515,5.70420832,143.5,143.46,6.97042391]
[1750730717034,5.70420832,143.49,143.45,12.67512292]
[1750730717265,5.70420832,143.49,143.45,6.9709146]
[1750730717440,5.70420832,143.48,143.44,104.03805325]
[1750730717642,5.70420832,143.48,143.44,102.53145325]
[1750730718423,5.70420832,143.48,143.44,18.83566157]
[1750730718946,0.14216157,143.51,143.44,13.13145325]
[1750730719246,0.14216157,143.51,143.44,6.16]
[1750730719247,5.70420832,143.47,143.44,6.16]
[1750730719626,5.70420832,143.46,143.44,6.16]
[1750730719931,5.70420832,143.45,143.44,6.16]
[1750730720922,26.0,143.46,143.41,14.99266761]
[1750730721119,5.70420832,143.44,143.41,14.99266761]
[1750730721319,5.70420832,143.42,143.41,14.99266761]
[1750730721520,5.84636989,143.42,143.41,14.99266761]
[1750730721746,5.70420832,143.42,143.41,14.99266761]
[1750730722042,5.70420832,143.43,143.41,14.99266761]
[1750730723036,5.70420832,143.44,143.41,14.99266761]
[1750730723235,5.70420832,143.44,143.41,21.96564839]
[1750730723433,31.84636989,143.45,143.41,21.96564839]
[1750730723842,5.70420832,143.45,143.41,21.96564839]
[1750730724049,5.70420832,143.45,143.41,27.66985671]
[1750730724228,5.84636989,143.46,143.42,5.70420832]
[1750730724637,5.70420832,143.45,143.41,28.13164839]
[1750730724836,5.70420832,143.44,143.41,14.99266761]
[1750730725047,5.70420832,143.43,143.41,14.99266761]
[1750730725228,5.84636989,143.42,143.41,14.99266761]
[1750730727455,0.14216157,143.42,143.41,14.99266761]
[1750730727626,26.0,143.46,143.41,14.99266761]
[1750730727826,3.53059039,143.47,143.41,14.99266761]
[1750730727827,31.70420832,143.42,143.41,14.99266761]
[1750730728441,5.84636989,143.44,143.41,14.99266761]
[1750730728646,5.70420832,143.43,143.41,14.99266761]
[1750730731051,5.70420832,143.44,143.41,14.99266761]
[1750730731255,5.70420832,143.43,143.41,14.99266761]
[1750730731461,26.0,143.45,143.41,14.99266761]
[1750730731664,5.70420832,143.43,143.41,14.99266761]
[1750730732033,31.70420832,143.45,143.41,21.96562902]
[1750730732232,5.70420832,143.45,143.41,27.66983734]
[1750730732433,5.70420832,143.46,143.41,27.66983734]
[1750730733356,3.65300811,143.47,143.41,27.66983734]
[1750730733657,5.70420832,143.46,143.41,21.96562902]
[1750730734046,5.70420832,143.45,143.41,27.66983734]
[1750730735631,0.14216157,143.47,143.41,27.66983734]
[1750730735827,5.70420832,143.45,143.41,27.66983734]
[1750730736066,5.70420832,143.46,143.41,27.66983734]
[1750730736440,5.70420832,143.45,143.41,21.96562902]
[1750730736858,0.14216157,143.47,143.41,21.96562902]
[1750730736859,5.70420832,143.44,143.41,14.99266761]
[1750730737165,5.70420832,143.43,143.41,14.99266761]
[1750730737371,5.70420832,143.42,143.41,14.99266761]
[1750730737736,5.70420832,143.43,143.41,14.99266761]
[1750730739363,5.70420832,143.42,143.41,14.99266761]
[1750730739571,0.14216157,143.42,143.41,14.99266761]
[1750730739744,5.84636989,143.42,143.41,14.99266761]
[1750730746467,0.14216157,143.42,143.41,14.99266761]
[1750730746768,31.84636989,143.42,143.41,14.99266761]
[1750730750174,31.77636989,143.42,143.41,14.99266761]
[1750730750358,31.70420832,143.42,143.41,14.99266761]
[1750730752061,31.84636989,143.42,143.41,14.99266761]
[1750730755145,24.49601875,143.42,143.41,14.99266761]
[1750730755679,5.84636989,143.42,143.41,14.99266761]
[1750730760873,24.49601875,143.42,143.41,14.99266761]
[1750730761075,29.64990778,143.42,143.41,14.99266761]
[1750730761273,29.64990778,143.42,143.39,1.4999656]
[1750730761274,44.79181043,143.4,143.39,1.4999656]
[1750730761464,79.15601875,143.4,143.39,1.4999656]
[1750730761664,84.30990778,143.4,143.39,1.4999656]
[1750730761861,84.30990778,143.4,143.3,11.90420832]
[1750730761862,26.0,143.36,143.3,6.2]
[1750730762184,5.70420832,143.32,143.3,6.2]
[1750730762677,5.70420832,143.33,143.3,13.17830136]
[1750730763272,5.70420832,143.33,143.3,6.2]
[1750730763591,1.6166,143.41,143.31,5.70420832]
[1750730763779,18.79181043,143.4,143.3,13.17817828]
[1750730763961,5.70420832,143.37,143.33,5.70420832]
[1750730764164,31.16014215,143.4,143.34,5.70420832]
[1750730764364,5.70420832,143.39,143.34,5.70420832]
[1750730764880,0.14216157,143.42,143.34,5.70420832]
[1750730764881,5.70420832,143.38,143.34,5.70420832]
[1750730765065,26.0,143.39,143.33,12.68099265]
[1750730765382,5.70420832,143.38,143.33,12.68099265]
[1750730765589,26.0,143.39,143.34,5.70420832]
[1750730765771,5.70420832,143.39,143.34,5.70420832]
[1750730766086,5.70420832,143.35,143.31,6.97788012]
[1750730766379,26.0,143.37,143.31,6.97788012]
[1750730766762,5.70420832,143.35,143.31,12.68208844]
[1750730767268,5.70420832,143.35,143.31,5.70420832]
[1750730767469,5.70420832,143.35,143.3,18.88243706]
[1750730767867,5.70420832,143.35,143.3,13.17822874]
[1750730768071,5.70420832,143.35,143.3,18.88243706]
[1750730768275,31.70420832,143.31,143.24,5.70420832]
[1750730768482,31.70420832,143.31,143.23,5.70420832]
[1750730768483,5.70420832,143.28,143.23,5.70420832]
[1750730768980,5.70420832,143.27,143.23,5.70420832]
[1750730769286,5.70420832,143.25,143.21,7.981]
[1750730769492,26.0,143.28,143.2,80.78163342]
[1750730769493,5.70420832,143.22,143.2,80.78163342]
[1750730769669,47.69181043,143.27,143.17,7.22500832]
[1750730769670,5.70420832,143.21,143.17,7.22500832]
[1750730769989,5.70420832,143.25,143.2,12.68712462]
[1750730770172,5.70420832,143.25,143.21,5.70420832]
[1750730770370,5.70420832,143.3,143.24,12.16440832]
[1750730770683,5.70420832,143.32,143.28,5.70420832]
[1750730771068,26.0,143.34,143.26,1.5208]
[1750730771388,5.70420832,143.32,143.27,5.70420832]
[1750730772083,31.70420832,143.33,143.28,12.68318146]
[1750730773277,26.0,143.33,143.28,12.68318146]
[1750730773480,5.70420832,143.34,143.29,5.70420832]
[1750730773765,18.64964886,143.38,143.3,5.70420832]
[1750730774086,5.70420832,143.35,143.3,5.70420832]
[1750730774273,5.70420832,143.35,143.31,6.97788012]
[1750730774584,0.14216157,143.37,143.29,6.97885407]
[1750730774776,5.70420832,143.34,143.29,12.68306239]
[1750730775084,5.70420832,143.32,143.28,6.97923299]
[1750730775300,5.70420832,143.36,143.27,18.88394263]